bitfinex/quotes_ETHUSD_20241018
["timestamp","ask_amount","ask_price","bid_price","bid_amount"]
[1729279523144,0.7855,2658.7,2658.0,0.55]
[1729279523345,0.03562547,2658.6,2658.0,0.55]
[1729279523551,0.03562547,2658.6,2658.1,0.7899]
[1729279523959,0.7535,2658.9,2658.1,0.7899]
[1729279524292,0.7535,2658.9,2658.0,0.55]
[1729279524293,0.03600034,2658.8,2658.3,0.8065]
[1729279524691,0.03600034,2658.8,2658.5,0.8065]
[1729279524838,0.02258111,2659.2,2658.5,0.8065]
[1729279525039,0.8281,2659.3,2658.5,0.8065]
[1729279525040,0.03594191,2658.7,2658.5,0.8065]
[1729279525364,0.8281,2659.3,2658.5,0.8065]
[1729279525562,0.03513278,2659.2,2658.8,3.0]
[1729279525767,0.8281,2659.3,2658.5,0.8065]
[1729279526076,0.03520612,2659.2,2658.5,0.8065]
[1729279534578,0.7582,2659.1,2658.5,0.8065]
[1729279534968,0.03423828,2659.0,2658.5,0.8065]
[1729279535553,0.7582,2659.1,2658.5,0.8065]
[1729279536991,0.7582,2659.1,2658.3,0.8044]
[1729279537196,0.7582,2659.1,2658.2,3.0]
[1729279537491,0.7582,2659.1,2658.1,0.8044]
[1729279538102,0.03423828,2659.0,2658.1,0.8044]
[1729279538305,0.7568,2658.9,2658.1,0.8044]
[1729279539501,0.7568,2658.7,2658.1,0.8044]
[1729279539999,0.7568,2658.7,2658.0,0.58480686]
[1729279540364,0.03395251,2658.6,2658.0,0.58480686]
[1729279540706,0.7568,2658.7,2658.0,0.58480686]
[1729279540890,0.03395251,2658.6,2658.0,0.58480686]
[1729279541060,0.7568,2658.7,2658.0,0.58480686]
[1729279541266,0.03395251,2658.6,2658.0,0.58480686]
[1729279541461,0.7884,2658.5,2658.0,0.58480686]
[1729279542365,0.0338167,2658.4,2658.0,0.58480686]
[1729279542565,0.7884,2658.5,2658.0,0.58480686]
[1729279542792,0.03623217,2658.4,2658.0,0.58480686]
[1729279543181,0.7884,2658.5,2658.0,0.58480686]
[1729279543499,0.03884732,2658.4,2658.0,0.58480686]
[1729279543667,0.7884,2658.5,2658.0,0.58480686]
[1729279544067,0.03884732,2658.4,2658.0,0.58480686]
[1729279544570,0.7884,2658.5,2658.0,0.58480686]
[1729279544787,0.03884732,2658.4,2658.0,0.58480686]
[1729279545164,0.7884,2658.5,2658.0,0.58480686]
[1729279545364,0.03884732,2658.4,2658.0,0.58480686]
[1729279546026,0.03884732,2658.4,2658.1,1.34380219]
[1729279546319,0.7567,2658.7,2658.1,1.34380219]
[1729279546708,0.03900403,2658.6,2658.1,1.34380219]
[1729279546877,0.7567,2658.7,2658.1,1.34380219]
[1729279547423,0.03900403,2658.6,2658.1,1.34380219]
[1729279547711,0.7567,2658.7,2658.1,1.34380219]
[1729279547917,0.03900403,2658.6,2658.1,1.34380219]
[1729279550817,0.7567,2658.7,2658.1,1.34380219]
[1729279553501,0.7567,2658.7,2658.1,0.7894]
[1729279554205,0.7567,2658.7,2658.1,0.5394]
[1729279556589,1.53583401,2658.7,2658.1,0.5394]
[1729279558626,0.77913401,2658.6,2658.1,0.5394]
[1729279559514,0.77913401,2658.5,2658.1,0.5394]
[1729279559889,0.77913401,2658.5,2658.2,0.55440219]
[1729279560088,0.7567,2658.7,2658.2,0.55440219]
[1729279560089,0.77913401,2658.7,2658.2,0.55440219]
[1729279560294,1.58173401,2658.9,2658.3,1.3514]
[1729279560492,0.77913401,2658.8,2658.3,1.3514]
[1729279560795,1.58173401,2658.7,2658.1,0.58479626]
[1729279561129,0.77913401,2658.6,2658.1,0.58479626]
[1729279561337,0.77913401,2658.6,2658.0,0.8014]
[1729279561534,0.77913401,2658.4,2658.0,0.8014]
[1729279563501,0.77913401,2658.4,2658.1,0.53754943]
[1729279563702,0.77913401,2658.5,2658.1,0.55440219]
[1729279563907,0.77913401,2658.5,2658.0,1.25094057]
[1729279564125,0.77913401,2658.3,2657.8,0.7975]
[1729279564295,1.56133401,2658.4,2657.8,0.7975]
[1729279564853,0.77913401,2658.3,2657.8,1.24774285]
[1729279565161,0.77913401,2658.3,2657.8,0.7975]
[1729279565358,0.77913401,2658.3,2657.9,0.45024285]
[1729279566252,0.77913401,2658.3,2657.8,0.7975]
[1729279566456,1.56133401,2658.4,2657.9,0.45024285]
[1729279566629,0.77913401,2658.3,2657.9,0.45024285]
[1729279567029,0.77913401,2658.3,2657.8,0.7975]
[1729279567230,0.77913401,2658.3,2657.9,0.45024285]
[1729279568470,1.56133401,2658.4,2657.8,1.35190219]
[1729279568628,0.77913401,2658.3,2657.8,1.35190219]
[1729279568828,0.77913401,2658.3,2657.9,0.45028993]
[1729279569029,0.77913401,2658.3,2657.8,0.7975]
[1729279569456,0.77913401,2658.3,2657.9,1.03510737]
[1729279569834,0.77913401,2658.3,2657.9,0.58481744]
[1729279570236,0.77913401,2658.2,2657.9,0.58481744]
[1729279570463,0.77913401,2658.3,2657.9,0.58481744]
[1729279571171,0.77913401,2658.3,2657.9,1.58950956]
[1729279571373,1.56133401,2658.4,2657.9,1.58950956]
[1729279571536,0.77913401,2658.3,2657.9,1.58957665]
[1729279572793,0.77913401,2658.4,2658.0,4.00035702]
[1729279573180,0.77913401,2658.3,2658.0,0.55]
[1729279573357,0.77913401,2658.3,2657.9,1.03521287]
[1729279573560,0.77913401,2658.3,2657.9,0.58481744]
[1729279573861,0.77913401,2658.3,2657.9,1.03521338]
[1729279574065,1.59913401,2658.2,2657.9,1.03521338]
[1729279574253,1.59913401,2658.2,2657.9,0.58481744]
[1729279576500,1.59913401,2658.2,2657.9,1.03530274]
[1729279577155,1.59913401,2658.2,2657.9,0.58481744]
[1729279577470,1.59913401,2658.2,2657.9,1.03536155]
[1729279578090,0.77913401,2658.2,2657.9,1.03536155]
[1729279578297,0.77913401,2658.2,2657.9,0.58481744]
[1729279578859,0.77913401,2658.2,2657.9,1.13921963]
[1729279579055,0.77913401,2658.3,2658.0,0.45057508]
[1729279579256,0.77913401,2658.3,2657.9,1.13921963]
[1729279579537,0.77913401,2658.3,2658.0,0.45061225]
[1729279579828,0.77913401,2658.3,2657.9,1.13921963]
[1729279580177,0.77913401,2658.3,2658.1,0.8243]
[1729279580421,1.16870102,2658.4,2658.1,0.8243]
[1729279580422,0.77913401,2658.4,2658.1,1.37870219]
[1729279580616,0.77913401,2658.4,2658.2,0.45063406]
[1729279580826,0.77913401,2658.4,2658.1,1.37870219]
[1729279580976,0.77913401,2658.5,2658.2,0.45063977]
[1729279581180,0.77913401,2658.5,2658.2,0.55]
[1729279581429,0.77913401,2658.5,2658.3,0.45062115]
[1729279581577,0.77913401,2658.6,2658.2,1.10440219]
[1729279581776,1.16870102,2658.7,2658.2,1.10440219]
[1729279581777,0.77913401,2658.7,2658.3,1.27491085]
[1729279582017,0.77913401,2658.6,2658.3,0.8243]
[1729279582529,0.77913401,2658.7,2658.3,0.8243]
[1729279583415,0.77913401,2658.6,2658.3,0.8243]
[1729279583591,0.77913401,2658.7,2658.3,0.8243]
[1729279585123,0.77913401,2658.6,2658.3,0.8243]
[1729279585514,0.77913401,2658.7,2658.3,0.8243]
[1729279586205,0.832,2658.6,2658.0,0.7667]
[1729279586407,1.61113401,2658.6,2658.0,1.32110219]
[1729279587439,0.832,2658.6,2658.1,0.55440219]
[1729279587644,0.77913401,2658.7,2658.2,0.03035974]
[1729279587825,0.77913401,2658.6,2658.1,0.55440219]
[1729279589113,1.95580102,2658.8,2658.0,0.7667]
[1729279589317,0.78281829,2658.6,2658.0,0.7667]
[1729279591944,0.8098,2658.5,2658.0,0.7667]
[1729279595234,1.59261829,2658.5,2657.9,0.58481744]
[1729279596920,1.59261829,2658.5,2657.9,1.13921963]
[1729279598461,0.8098,2658.5,2657.9,1.13921963]
[1729279598862,1.59261829,2658.5,2657.9,1.13921963]
[1729279599477,0.8098,2658.5,2657.9,1.13921963]
[1729279600173,1.59261829,2658.5,2657.9,1.13921963]
[1729279600786,0.8098,2658.5,2657.9,1.13921963]
[1729279600989,1.59261829,2658.5,2657.9,0.58481744]
[1729279602486,0.7768,2658.4,2657.9,0.58481744]
[1729279602688,1.55961829,2658.4,2657.9,0.58481744]
[1729279602891,0.7768,2658.4,2657.9,0.58481744]
[1729279603901,1.55961829,2658.4,2657.9,0.58481744]
[1729279604052,1.83245022,2658.4,2657.9,0.58481744]
[1729279604260,1.55961829,2658.4,2657.9,0.58481744]
[1729279607002,0.7768,2658.4,2657.9,0.58481744]
[1729279607201,0.7768,2658.4,2657.9,1.13921963]
[1729279607405,0.78281829,2658.5,2658.0,1.32690219]
[1729279607703,0.78281829,2658.5,2658.0,0.7725]
[1729279609191,0.8033,2658.4,2658.0,0.55]
[1729279610399,0.8033,2658.4,2657.9,0.58481744]
[1729279612575,0.8033,2658.3,2657.9,0.58481744]
[1729279612920,1.60211829,2658.2,2657.9,0.58481744]
[1729279614789,0.7866,2658.1,2657.9,0.58481744]
[1729279615093,0.7866,2658.1,2657.5,3.0]
[1729279615405,0.7866,2658.1,2657.5,0.55]
[1729279617230,0.7866,2658.1,2657.6,0.07019287]
[1729279617421,0.7866,2658.1,2657.7,0.02495434]
[1729279617596,0.7866,2658.1,2657.5,0.55]
[1729279621245,0.7866,2658.1,2657.6,0.2815228]
[1729279621553,0.7866,2658.1,2657.5,0.55]
[1729279621554,0.7866,2658.1,2657.7,0.2815228]
[1729279621846,0.7866,2658.1,2658.0,3.0]
[1729279622018,1.56941829,2658.1,2657.5,0.55]
[1729279622204,0.7866,2658.1,2657.6,0.28149299]
[1729279622405,1.56941829,2658.1,2657.7,0.28149299]
[1729279622619,1.56941829,2658.1,2657.8,0.28149299]
[1729279622844,1.56941829,2658.1,2657.9,0.28149299]
[1729279623004,1.56941829,2658.1,2657.5,0.55]
[1729279623205,0.7866,2658.1,2657.6,0.28149611]
[1729279623547,0.7866,2658.1,2658.0,3.0]
[1729279623710,1.55331829,2658.4,2658.0,0.28147584]
[1729279624040,1.55331829,2658.4,2658.1,0.28147584]
[1729279624202,1.55331829,2658.4,2658.1,0.28146004]
[1729279624402,1.55331829,2658.4,2658.0,0.51899346]
[1729279624600,1.55331829,2658.4,2658.2,0.28146352]
[1729279624828,1.55331829,2658.4,2657.8,0.8027]
[1729279625031,1.55331829,2658.4,2657.9,0.28146797]
[1729279625219,1.55331829,2658.4,2658.0,0.28146797]
[1729279625419,1.55331829,2658.4,2658.1,0.28146797]
[1729279625614,1.55331829,2658.4,2657.8,0.8027]
[1729279625910,1.55331829,2658.4,2657.9,0.28147465]
[1729279626111,1.55331829,2658.4,2658.0,0.28147465]
[1729279626306,1.55331829,2658.4,2658.1,0.28147465]
[1729279626647,1.55331829,2658.4,2657.8,0.8027]
[1729279626952,1.55331829,2658.4,2657.9,0.28146979]
[1729279627149,1.55331829,2658.4,2658.0,0.28146979]
[1729279627305,1.55331829,2658.4,2658.1,0.28146979]
[1729279627501,1.55331829,2658.4,2658.2,0.28146979]
[1729279627707,1.55331829,2658.4,2657.8,0.8027]
[1729279628147,1.55331829,2658.4,2657.9,0.28146446]
[1729279628309,1.55331829,2658.4,2657.8,0.8027]
[1729279629555,1.55331829,2658.4,2657.9,0.07459171]
[1729279630151,1.55331829,2658.4,2657.7,0.58486663]
[1729279630460,1.55331829,2658.4,2657.8,0.59585658]
[1729279630961,0.78281829,2658.3,2657.8,0.55]
[1729279631843,1.55331829,2658.4,2657.8,0.55]
[1729279633063,1.55331829,2658.4,2658.0,0.55]
[1729279633221,0.7705,2658.4,2658.0,0.55]
[1729279634568,0.78281829,2658.5,2658.0,0.55]
[1729279634786,0.78281829,2658.6,2658.1,0.7806]
[1729279634927,0.78281829,2658.7,2658.2,0.55]
[1729279635262,1.54721829,2658.8,2658.2,0.55]
[1729279636027,0.7644,2658.8,2658.2,0.55]
[1729279636923,0.7644,2658.7,2658.1,0.7806]
[1729279637131,0.78281829,2658.6,2657.8,1.3306]
[1729279637468,0.7644,2658.5,2657.8,1.3306]
[1729279637766,1.54721829,2658.5,2657.8,1.3306]
[1729279638125,1.54721829,2658.5,2657.8,0.7806]
[1729279639530,1.54721829,2658.5,2657.9,0.55]
[1729279639757,1.81881022,2658.5,2657.8,0.7806]
[1729279640072,0.7766,2658.4,2657.7,0.58486663]
[1729279640363,0.7766,2658.3,2657.7,0.58486663]
[1729279642038,0.7766,2658.3,2657.8,0.4503906]
[1729279642239,0.7766,2658.3,2657.9,0.4503906]
[1729279642472,0.7766,2658.3,2658.0,0.4503906]
[1729279642657,0.7766,2658.3,2657.8,0.4503906]
[1729279642974,0.7766,2658.3,2657.9,0.4503906]
[1729279643177,0.7766,2658.3,2658.0,0.4503906]
[1729279643469,0.7766,2658.3,2657.7,0.58486663]
[1729279643663,0.7766,2658.3,2657.8,0.45039788]
[1729279643872,0.7766,2658.3,2657.9,0.45039788]
[1729279644055,0.7531,2658.5,2658.0,1.80719788]
[1729279644368,1.53591829,2658.7,2658.2,0.55]
[1729279644540,1.53591829,2658.7,2658.3,0.45039788]
[1729279644748,1.53591829,2658.7,2658.4,0.45039788]
[1729279644935,1.53591829,2658.7,2658.3,0.45039788]
[1729279645133,1.53591829,2658.7,2658.4,0.45039788]
[1729279645331,1.53591829,2658.7,2658.3,0.45039788]
[1729279645528,0.7531,2658.7,2658.4,0.45039788]
[1729279645833,0.7531,2658.7,2658.3,0.45039788]
[1729279646030,0.7531,2658.7,2658.4,0.45039788]
[1729279646236,0.7531,2658.7,2658.3,0.45039788]
[1729279646457,0.7531,2658.7,2658.1,0.45039788]
[1729279646770,0.7531,2658.7,2658.2,0.45039788]
[1729279646973,0.7531,2658.7,2658.1,0.55]
[1729279647143,0.7531,2658.7,2658.2,0.45039788]
[1729279647548,0.7531,2658.7,2658.2,1.23259788]
[1729279647757,0.7531,2658.7,2658.3,0.45039788]
[1729279648836,0.7531,2658.7,2658.3,1.00015899]
[1729279649269,0.7531,2658.7,2658.3,0.55]
[1729279649467,0.7531,2658.7,2658.3,1.00015899]
[1729279650168,0.7531,2658.7,2658.3,0.55]
[1729279651258,0.7531,2658.7,2658.1,0.55]
[1729279651578,0.7531,2658.7,2658.2,0.45008675]
[1729279651782,0.7531,2658.7,2658.3,0.55]
[1729279652078,0.7531,2658.7,2658.2,1.00008675]
[1729279652384,0.7531,2658.7,2658.2,0.55]
[1729279652679,0.7531,2658.7,2658.2,1.00008675]
[1729279652875,0.7531,2658.7,2658.2,0.55]
[1729279653078,0.7531,2658.7,2658.2,1.00008675]
[1729279653380,0.7531,2658.7,2658.2,0.55]
[1729279653582,0.7531,2658.7,2658.2,1.00008675]
[1729279653891,0.7531,2658.7,2658.2,0.55]
[1729279654061,0.7531,2658.7,2658.2,1.00008675]
[1729279654250,0.7531,2658.7,2658.2,0.55]
[1729279654578,0.7531,2658.7,2658.2,1.00008675]
[1729279654779,0.7531,2658.7,2658.2,1.06899346]
[1729279654970,0.7531,2658.7,2658.2,1.51908021]
[1729279655487,0.7531,2658.7,2658.2,1.51896741]
[1729279656353,0.7531,2658.7,2658.2,1.06899346]
[1729279658581,0.7531,2658.7,2658.2,1.51896741]
[1729279658750,0.7958,2658.9,2658.3,0.7784]
[1729279658953,1.57790899,2658.9,2658.4,0.02725555]
[1729279659173,0.7958,2658.9,2658.4,0.02725555]
[1729279659393,0.7958,2658.9,2658.8,3.0]
[1729279659714,0.7958,2658.9,2658.4,0.55]
[1729279666017,0.7958,2658.9,2658.2,0.44988045]
[1729279666158,0.7535,2658.8,2658.2,0.55]
[1729279667622,0.7535,2658.8,2658.2,0.44988045]
[1729279667779,0.7535,2658.8,2658.2,0.51899346]
[1729279668379,0.7535,2658.8,2658.2,1.47200667]
[1729279668599,0.7535,2658.8,2658.3,0.51899346]
[1729279671123,1.53560899,2658.8,2658.3,0.51899346]
[1729279671328,0.7535,2658.8,2658.3,0.51899346]
[1729279671527,0.7535,2658.8,2658.3,0.96887391]
[1729279671719,0.7535,2658.8,2658.3,0.96910576]
[1729279672242,1.53560899,2658.8,2658.3,0.51899346]
[1729279672418,0.7535,2658.8,2658.3,0.96910576]
[1729279673609,0.7535,2658.8,2658.3,0.4501123]
[1729279673732,0.7535,2658.8,2658.2,0.55]
[1729279674054,0.7535,2658.8,2658.3,0.4501123]
[1729279674256,0.7535,2658.8,2658.4,0.4501123]
[1729279674468,0.7535,2658.8,2658.4,0.55]
[1729279674615,0.7535,2658.8,2658.2,0.55]
[1729279674823,0.7535,2658.8,2658.4,0.55]
[1729279675052,0.7535,2658.8,2658.4,1.0001123]
[1729279675257,0.7535,2658.8,2658.2,0.55]
[1729279675423,0.7535,2658.8,2658.4,0.55]
[1729279675615,0.7535,2658.8,2658.4,1.00017068]
[1729279675820,0.7535,2658.8,2658.2,0.55]
[1729279676015,0.7535,2658.8,2658.4,0.55]
[1729279676217,1.53560899,2658.8,2658.3,0.45017068]
[1729279676415,0.7535,2658.8,2658.4,0.45017068]
[1729279676657,0.7535,2658.8,2658.3,0.45017068]
[1729279676853,0.7535,2658.8,2658.4,0.45017068]
[1729279677162,0.7535,2658.8,2658.3,0.45017068]
[1729279677340,0.7535,2658.8,2658.4,0.45017068]
[1729279677520,1.53560899,2658.8,2658.3,0.45017068]
[1729279677754,1.53560899,2658.8,2658.4,0.45017068]
[1729279678042,0.7535,2658.8,2658.3,0.45017068]
[1729279678240,1.53560899,2658.8,2658.4,0.45017068]
[1729279678518,1.53560899,2658.8,2658.1,0.55]
[1729279678855,1.53560899,2658.8,2658.3,0.55]
[1729279679033,1.53560899,2658.8,2658.4,0.45034812]
[1729279679558,1.53560899,2658.8,2658.0,0.55]
[1729279679772,1.53560899,2658.8,2658.2,0.55]
[1729279679920,1.53560899,2658.8,2658.3,0.4503817]
[1729279680121,0.7625,2658.7,2658.4,0.4503817]
[1729279680320,0.7625,2658.7,2658.1,0.55]
[1729279680545,0.7625,2658.7,2658.3,0.55]
[1729279680733,0.7625,2658.7,2658.4,0.4503991]
[1729279681064,0.7625,2658.7,2658.2,0.55]
[1729279681215,0.7625,2658.7,2658.3,0.45040174]
[1729279681560,0.7625,2658.6,2658.0,0.55]
[1729279681735,0.7625,2658.6,2658.2,0.55]
[1729279681933,0.7625,2658.6,2658.0,0.55]
[1729279682123,0.7625,2658.6,2658.3,0.45040603]
[1729279682325,0.7625,2658.6,2658.2,0.55]
[1729279682533,0.7625,2658.6,2658.3,0.45041295]
[1729279682758,0.7625,2658.6,2658.2,1.57212622]
[1729279683064,0.7625,2658.6,2658.3,0.45040966]
[1729279683230,0.7625,2658.6,2658.2,1.06899346]
[1729279683560,0.7625,2658.6,2658.3,0.45041775]
[1729279683855,0.7625,2658.6,2658.0,0.55]
[1729279684156,0.7625,2658.6,2658.2,0.55]
[1729279684333,0.7625,2658.6,2658.3,0.4504176]
[1729279684522,0.7625,2658.6,2658.0,0.55]
[1729279684718,0.7625,2658.6,2658.2,0.55]
[1729279684927,0.7625,2658.6,2658.3,0.45044885]
[1729279685117,0.7625,2658.6,2658.4,0.45044527]
[1729279685322,0.7625,2658.6,2658.2,0.55]
[1729279685519,0.7625,2658.6,2658.3,0.45047955]
[1729279685820,0.7625,2658.6,2658.4,0.45047955]
[1729279686132,0.7625,2658.6,2658.0,0.55]
[1729279687259,1.54460899,2658.6,2658.0,0.55]
[1729279687559,0.7625,2658.6,2658.0,0.55]
[1729279687761,1.54460899,2658.6,2658.0,0.55]
[1729279687927,0.7625,2658.6,2658.0,0.55]
[1729279688365,1.54460899,2658.6,2658.1,0.28166769]
[1729279688569,1.54460899,2658.6,2658.2,0.28166769]
[1729279688739,1.54460899,2658.6,2658.3,0.28166769]
[1729279688941,1.54460899,2658.6,2658.4,0.28166769]
[1729279689270,1.54460899,2658.6,2658.0,4.06899346]
[1729279689453,1.54460899,2658.6,2658.5,0.2817272]
[1729279691029,0.78210899,2658.7,2658.5,0.2817272]
[1729279691346,0.78281528,2658.7,2658.6,0.2817272]
[1729279693062,1.60681528,2658.8,2658.6,0.2817272]
[1729279693268,1.17316348,2658.9,2658.7,0.55]
[1729279693269,0.78281528,2658.9,2658.7,0.55]
[1729279693471,1.60681528,2659.0,2658.7,0.83173436]
[1729279693623,1.60681528,2659.0,2658.8,0.28173436]
[1729279693829,1.60681528,2659.0,2658.8,0.28167742]
[1729279694126,0.78281528,2658.9,2658.8,0.28167742]
[1729279694327,0.02446297,2658.9,2658.8,0.83167742]
[1729279694560,1.56421798,2659.2,2658.9,0.55]
[1729279694755,0.7687,2659.3,2659.1,0.55]
[1729279695029,0.7687,2659.3,2659.0,0.28167742]
[1729279695437,0.7687,2659.3,2659.1,0.28167742]
[1729279695631,0.7687,2659.3,2659.2,0.28167742]
[1729279697278,0.7687,2659.3,2658.8,0.55]
[1729279697480,0.7687,2659.3,2658.9,0.28138664]
[1729279697635,0.7687,2659.3,2659.2,3.0]
[1729279697836,0.7687,2659.3,2658.7,0.51899346]
[1729279698076,0.7687,2659.3,2658.8,0.2813199]
[1729279698239,0.7687,2659.3,2658.9,0.2813199]
[1729279698441,0.7687,2659.3,2658.8,0.51899346]
[1729279698442,0.7687,2659.3,2659.0,0.2813199]
[1729279698640,0.7687,2659.3,2659.1,0.2813199]
[1729279698840,0.7687,2659.3,2658.9,0.55]
[1729279699040,0.7687,2659.3,2659.0,0.28126127]
[1729279699272,0.7687,2659.3,2659.1,0.28126127]
[1729279699586,0.7687,2659.3,2658.6,0.9265]
[1729279699746,0.7687,2659.3,2658.8,0.55]
[1729279699946,0.7687,2659.3,2658.9,0.28122665]
[1729279700147,0.7687,2659.3,2659.0,0.28122665]
[1729279700485,0.7687,2659.3,2659.1,0.28122665]
[1729279700784,0.7687,2659.3,2658.9,0.55]
[1729279701085,0.7687,2659.3,2659.0,0.28118578]
[1729279701260,0.7687,2659.3,2659.0,0.28118493]
[1729279701445,0.7687,2659.3,2658.9,0.55]
[1729279701645,0.7687,2659.3,2659.0,0.28114924]
[1729279701847,0.7687,2659.3,2658.9,0.55]
[1729279702048,0.7687,2659.3,2659.0,0.2811492]
[1729279702247,0.7687,2659.3,2658.9,0.55]
[1729279702550,0.7687,2659.3,2659.0,0.28111674]
[1729279702853,0.7687,2659.3,2658.9,0.55]
[1729279703055,0.7687,2659.3,2659.0,0.28111643]
[1729279703262,0.7687,2659.3,2658.9,0.55]
[1729279703576,0.7687,2659.3,2659.0,0.28109112]
[1729279703755,0.7687,2659.3,2658.9,0.55]
[1729279703965,0.7687,2659.3,2659.0,0.28108778]
[1729279704286,0.7687,2659.3,2659.0,0.28106259]
[1729279705261,0.7687,2659.3,2659.0,0.28106122]
[1729279705477,0.7687,2659.3,2658.9,0.55]
[1729279705797,0.7687,2659.3,2659.0,0.28106122]
[1729279706085,0.7687,2659.3,2658.9,0.55]
[1729279706284,0.7687,2659.3,2659.0,0.28106122]
[1729279706659,0.7687,2659.3,2658.7,0.28106122]
[1729279706888,0.7687,2659.3,2658.8,0.28106122]
[1729279707087,0.7956,2659.2,2658.5,0.28106122]
[1729279707251,0.7956,2659.2,2658.6,0.80005468]
[1729279707452,0.7956,2659.2,2658.7,0.28106122]
[1729279707646,0.7956,2659.2,2658.7,0.80005468]
[1729279707884,0.7956,2659.2,2658.8,0.28106122]
[1729279708087,0.7956,2659.2,2658.7,0.51899346]
[1729279708251,0.7956,2659.2,2658.8,0.28102585]
[1729279708455,0.7956,2659.2,2658.9,0.28102585]
[1729279708977,0.7956,2659.2,2658.8,1.30109346]
[1729279709163,0.7956,2659.2,2658.9,0.28100922]
[1729279713119,0.7956,2659.2,2658.9,0.83093843]
[1729279715591,0.7956,2659.2,2658.9,0.83092191]
[1729279717116,0.7956,2659.2,2658.9,0.8309195]
[1729279720985,0.8327,2659.6,2659.0,0.2809195]
[1729279721183,0.8327,2659.6,2659.4,3.0]
[1729279721378,0.8327,2659.6,2659.1,0.07520339]
[1729279721684,0.8327,2659.6,2659.1,0.35612289]
[1729279722582,0.8327,2659.6,2659.1,0.07520339]
[1729279724695,0.8327,2659.6,2659.0,0.79991296]
[1729279724885,0.8327,2659.6,2659.0,0.2809195]
[1729279728194,0.8327,2659.6,2659.0,0.28090404]
[1729279728627,0.8023,2659.5,2659.0,0.28090404]
[1729279728802,0.8023,2659.5,2658.7,0.28090404]
[1729279728803,0.8023,2659.4,2658.7,0.28090404]
[1729279728992,1.58288209,2659.3,2658.6,0.28090404]
[1729279729327,0.8023,2659.1,2658.5,7.29]
[1729279729524,0.8023,2659.1,2658.6,0.07505653]
[1729279729729,1.85848665,2659.1,2658.5,7.29]
[1729279730030,0.8023,2659.0,2658.1,0.51899346]
[1729279730216,0.8023,2658.8,2658.2,0.28103453]
[1729279730427,0.8023,2658.8,2658.1,0.28103453]
[1729279730593,1.58288209,2658.8,2658.2,0.28103453]
[1729279730788,0.8023,2658.7,2658.2,0.28103453]
[1729279731029,0.8023,2658.9,2658.3,0.86696911]
[1729279731214,0.8023,2658.9,2658.4,0.28103453]
[1729279731420,0.8023,2658.9,2658.5,0.34801984]
[1729279731592,0.8023,2658.9,2658.6,0.28103453]
[1729279731992,0.8023,2658.9,2658.6,0.28105113]
[1729279732310,0.8023,2658.9,2658.6,0.28108621]
[1729279733204,0.8023,2658.9,2658.5,0.55]
[1729279733394,0.8023,2658.9,2658.6,0.28111957]
[1729279733590,0.7741,2659.1,2658.7,0.2811146]
[1729279733834,0.7741,2659.1,2658.5,1.90139346]
[1729279734000,0.7741,2659.1,2658.7,0.55]
[1729279734333,0.7741,2659.1,2658.5,1.90139346]
[1729279734495,0.7741,2659.1,2658.7,0.55]
[1729279734689,0.7741,2659.1,2658.8,0.28114495]
[1729279734892,0.7741,2659.1,2658.7,0.55]
[1729279735425,0.7741,2659.1,2658.8,0.28119144]
[1729279735818,0.7741,2659.1,2658.5,1.35139346]
[1729279736003,0.7741,2659.1,2658.4,0.55]
[1729279736204,1.55468209,2659.1,2658.5,0.28119009]
[1729279736527,1.55468209,2659.1,2658.6,0.28119009]
[1729279736742,1.55468209,2659.1,2658.7,0.28119009]
[1729279736893,0.7741,2659.1,2658.4,1.06899346]
[1729279737092,0.7741,2659.1,2658.5,0.28124301]
[1729279737293,1.55468209,2659.1,2658.6,0.28124301]
[1729279737517,1.55468209,2659.1,2658.7,0.28124301]
[1729279737714,1.55468209,2659.1,2658.4,1.06899346]
[1729279737933,0.7741,2659.1,2658.5,0.28126967]
[1729279738135,0.7741,2659.1,2658.6,0.28126967]
[1729279738429,0.7741,2659.1,2658.7,0.28126967]
[1729279738640,0.7741,2659.1,2658.8,0.28126967]
[1729279738805,0.7741,2659.1,2658.4,1.06899346]
[1729279739014,0.7741,2659.1,2658.5,0.28129574]
[1729279739334,0.7741,2659.1,2658.6,0.28129574]
[1729279739534,0.7741,2659.1,2658.7,0.28129574]
[1729279739734,0.7741,2659.1,2658.8,0.28129574]
[1729279739907,0.7741,2659.1,2658.4,1.06899346]
[1729279740108,0.7741,2659.1,2658.5,0.2812973]
[1729279740319,0.7741,2659.1,2658.6,0.2812973]
[1729279740642,0.7741,2659.1,2658.7,0.2812973]
[1729279740937,0.7741,2659.1,2658.8,0.2812973]
[1729279741138,0.7741,2659.1,2658.4,1.06899346]
[1729279741434,0.7741,2659.1,2658.5,0.2813024]
[1729279741637,0.7741,2659.1,2658.6,0.2813024]
[1729279741847,1.55468209,2659.1,2658.7,0.2813024]
[1729279741998,1.55468209,2659.1,2658.8,0.2813024]
[1729279742196,0.7741,2659.1,2658.4,1.06899346]
[1729279742442,0.7741,2659.1,2658.5,0.28129602]
[1729279742697,0.7741,2659.1,2658.6,0.28129602]
[1729279742917,0.7741,2659.1,2658.7,0.28129602]
[1729279743116,0.7741,2659.1,2658.8,0.28129602]
[1729279743338,0.7741,2659.1,2658.4,1.06899346]
[1729279743509,0.7741,2659.1,2658.5,0.28128787]
[1729279743715,0.7741,2659.1,2658.6,0.28128787]
[1729279744012,0.7741,2659.1,2658.7,0.28128787]
[1729279744215,0.7741,2659.1,2658.8,0.28128787]
[1729279744544,0.7741,2659.1,2658.4,1.06899346]
[1729279744832,0.7741,2659.1,2658.5,0.28127937]
[1729279745042,0.7741,2659.1,2658.6,0.34245973]
[1729279745206,0.7741,2659.1,2658.7,0.28127937]
[1729279745412,0.7741,2659.1,2658.8,0.28127937]
[1729279745716,0.7907,2659.0,2658.4,0.55]
[1729279745914,0.7907,2659.0,2658.5,0.28127585]
[1729279746210,0.7907,2659.0,2658.6,0.28127579]
[1729279746410,0.7907,2659.0,2658.7,0.28127579]
[1729279746613,0.7907,2659.0,2658.8,0.28127579]
[1729279746932,0.7907,2659.0,2658.4,0.55]
[1729279747134,0.7907,2659.0,2658.5,0.28126885]
[1729279747339,0.7907,2659.0,2658.6,0.28126885]
[1729279747537,0.7907,2659.0,2658.3,0.58475992]